bitfinex/quotes_ETHUSD_20251218
["timestamp","ask_amount","ask_price","bid_price","bid_amount"]
[1766083376857,0.56,2854.3,2853.6,0.46438023]
[1766083377164,0.56,2854.3,2853.6,4.5392]
[1766083377368,0.56,2854.3,2853.6,8.04353148]
[1766083377661,0.56,2854.3,2853.6,4.5392]
[1766083379756,0.56,2854.3,2853.5,0.46438023]
[1766083380456,0.97368275,2854.3,2853.5,0.46438023]
[1766083381270,0.97468275,2854.3,2853.5,0.46438023]
[1766083381570,0.561,2854.3,2853.7,0.3591]
[1766083381873,0.561,2854.3,2853.4,0.82348023]
[1766083382080,30.07357578,2854.2,2853.0,4.4818]
[1766083382286,30.07357578,2854.2,2853.0,0.002]
[1766083382287,10.07357578,2854.0,2853.0,0.002]
[1766083382456,3.41128111,2854.1,2853.0,0.002]
[1766083382662,0.001,2854.3,2853.7,0.3591]
[1766083383151,0.001,2854.3,2853.6,4.1207]
[1766083383346,0.001,2854.3,2853.6,4.4798]
[1766083383576,0.001,2854.3,2853.6,7.98413293]
[1766083383778,0.001,2854.3,2853.1,4.06494365]
[1766083383779,0.001,2854.3,2853.7,4.4798]
[1766083383946,0.001,2854.3,2853.5,3.5044173]
[1766083384143,0.001,2854.3,2853.5,8.77400702]
[1766083384349,0.001,2854.3,2853.5,5.26958972]
[1766083384884,0.53895601,2854.3,2853.1,7.98470307]
[1766083385078,0.07357578,2854.1,2853.1,7.98470307]
[1766083385280,3.57731626,2854.1,2853.1,4.4798]
[1766083385957,0.07357578,2853.9,2853.0,0.002]
[1766083386160,0.56,2853.8,2853.1,0.46438023]
[1766083386360,0.56,2853.8,2853.0,4.1227]
[1766083386361,0.56,2853.8,2853.0,0.002]
[1766083386661,0.07357578,2853.7,2852.7,4.1207]
[1766083386966,0.07357578,2853.5,2852.5,4.4798]
[1766083387174,0.07357578,2853.5,2852.6,0.46438023]
[1766083387362,13.91021784,2853.3,2852.2,4.4798]
[1766083387550,0.56,2853.2,2852.2,4.4798]
[1766083387753,0.56,2853.2,2852.2,7.98580721]
[1766083388063,0.56,2853.2,2852.3,0.46438023]
[1766083388264,1.10390798,2853.1,2852.3,0.46438023]
[1766083388452,30.0,2853.0,2852.0,0.002]
[1766083388652,1.17748376,2853.1,2852.2,3.50605547]
[1766083388854,1.17748376,2853.1,2852.2,7.98585547]
[1766083388855,0.07357578,2853.1,2852.2,7.98585547]
[1766083389485,0.07357578,2853.1,2853.0,0.002]
[1766083389685,0.07357578,2853.1,2852.2,7.98585547]
[1766083390282,0.07357578,2853.1,2852.2,3.50605547]
[1766083390582,0.07357578,2853.3,2852.3,4.4798]
[1766083390783,0.07357578,2853.5,2852.7,4.1207]
[1766083391561,0.46438023,2853.4,2852.2,4.06600572]
[1766083391756,30.0,2853.2,2852.1,3.97051781]
[1766083391978,0.56,2853.1,2852.0,4.33172925]
[1766083392177,0.63357578,2853.1,2852.0,0.82548023]
[1766083392459,0.63357578,2853.1,2852.0,3.86732313]
[1766083392784,30.0,2853.0,2852.0,0.3611]
[1766083392975,3.06335758,2852.9,2852.0,0.3611]
[1766083393175,0.63357578,2853.1,2852.0,0.3611]
[1766083393513,4.13854606,2853.1,2852.1,4.0922]
[1766083394191,7.64351634,2853.1,2852.1,4.0922]
[1766083394487,0.07357578,2852.9,2852.0,0.002]
[1766083394696,10.07357578,2852.7,2851.8,0.002]
[1766083394876,10.07357578,2852.7,2851.3,4.0942]
[1766083394877,0.07357578,2852.5,2851.3,4.0942]
[1766083395188,0.07357578,2852.3,2851.3,0.002]
[1766083395691,3.50606549,2852.2,2851.3,0.002]
[1766083395989,0.56,2852.1,2851.3,0.002]
[1766083396570,0.56,2852.1,2851.3,0.46638023]
[1766083396767,0.07357578,2852.3,2851.6,4.0922]
[1766083396967,4.04346542,2852.7,2851.9,3.7287]
[1766083397172,0.56,2852.6,2851.9,3.7287]
[1766083397477,3.00735758,2852.8,2852.1,3.7287]
[1766083397670,1.09795601,2852.9,2852.3,3.7287]
[1766083397872,4.60317101,2852.9,2852.0,0.002]
[1766083398091,1.09795601,2852.9,2852.1,4.0922]
[1766083398289,0.56,2853.0,2852.1,4.0922]
[1766083398872,0.56,2853.0,2852.0,0.002]
[1766083399289,0.07357578,2852.9,2852.0,0.002]
[1766083399789,0.07357578,2852.9,2852.0,0.77827126]
[1766083399981,0.07357578,2852.9,2852.1,4.0922]
[1766083400382,0.56,2852.9,2852.4,0.3635]
[1766083400578,0.56,2852.9,2852.4,4.0922]
[1766083400763,0.56,2852.9,2852.1,4.0922]
[1766083400964,0.56,2852.9,2852.1,4.9298905]
[1766083402184,4.06520646,2852.9,2852.0,0.002]
[1766083402569,0.56,2852.9,2852.0,0.002]
[1766083402763,0.56,2852.9,2852.0,4.0942]
[1766083403195,4.06520666,2852.9,2852.0,4.0942]
[1766083403397,0.07357578,2852.7,2851.2,0.002]
[1766083403574,30.0,2852.4,2851.2,3.7307]
[1766083403778,0.56,2852.3,2851.3,0.46638023]
[1766083404081,0.56,2852.3,2851.6,3.7287]
[1766083404274,0.56,2852.3,2851.7,4.0922]
[1766083404476,0.56,2852.3,2851.8,0.002]
[1766083404779,0.56,2852.3,2851.5,0.002]
[1766083405703,0.07357578,2852.2,2851.5,0.002]
[1766083406275,3.50618842,2852.1,2851.5,0.002]
[1766083406500,0.35797642,2852.0,2851.5,0.002]
[1766083406702,0.56,2851.9,2851.5,0.002]
[1766083406904,0.63357578,2851.9,2851.0,0.002]
[1766083407409,0.07357578,2851.7,2851.0,0.002]
[1766083407583,0.07357578,2851.5,2850.7,0.002]
[1766083407790,0.94346001,2851.3,2850.4,0.002]
[1766083407990,0.94346001,2851.3,2850.4,3.7307]
[1766083407991,0.47907978,2851.3,2850.4,3.7307]
[1766083408395,0.47907978,2851.3,2850.3,0.002]
[1766083408396,0.405504,2851.1,2850.3,0.002]
[1766083408712,0.56,2851.0,2850.3,0.002]
[1766083409374,30.0,2850.9,2849.8,0.002]
[1766083409716,3.056,2850.8,2849.8,0.002]
[1766083410014,0.07357578,2850.4,2849.4,4.0922]
[1766083410208,10.07357578,2850.2,2849.0,0.3635]
[1766083410505,0.07357578,2850.2,2849.1,4.0922]
[1766083410674,0.41430302,2850.1,2849.3,0.3635]
[1766083410876,0.561,2850.1,2849.6,4.0922]
[1766083411107,0.561,2850.1,2849.2,4.0922]
[1766083411311,0.561,2850.1,2849.1,4.85242035]
[1766083411478,0.561,2850.1,2849.1,4.0922]
[1766083411680,0.07357578,2850.2,2849.2,0.3635]
[1766083411896,0.561,2850.0,2849.4,0.3635]
[1766083412404,0.561,2850.0,2849.3,3.7287]
[1766083413090,0.561,2850.0,2849.1,3.97625596]
[1766083413296,0.561,2850.0,2849.1,4.55858023]
[1766083413493,0.07357578,2850.2,2849.1,8.06840406]
[1766083413708,0.91920278,2850.1,2849.2,3.50973087]
[1766083413889,0.561,2850.1,2849.2,3.50973087]
[1766083415003,0.561,2850.1,2849.2,7.60193087]
[1766083415705,0.561,2850.1,2849.2,4.0922]
[1766083416487,0.07357578,2850.0,2849.1,0.002]
[1766083416698,0.07357578,2849.8,2848.8,3.51023374]
[1766083416974,0.07357578,2849.8,2848.8,0.46438023]
[1766083417189,1.39879987,2849.7,2848.8,0.46438023]
[1766083417390,0.561,2849.6,2848.8,0.46438023]
[1766083417591,0.561,2849.6,2848.9,0.3635]
[1766083417808,0.561,2849.6,2848.9,4.0922]
[1766083418307,0.07357578,2849.8,2849.2,3.7287]
[1766083418515,0.561,2849.7,2849.3,4.0922]
[1766083418807,0.561,2849.7,2848.8,3.9745334]
[1766083418996,0.561,2849.7,2848.9,0.74849007]
[1766083419622,0.561,2849.7,2849.0,0.002]
[1766083421087,0.561,2849.7,2849.0,3.7307]
[1766083421289,0.561,2849.6,2849.4,3.7287]
[1766083421484,0.561,2849.6,2849.4,2.82936656]
[1766083421697,0.001,2850.1,2849.4,2.82936656]
[1766083421904,0.561,2850.0,2849.4,2.82936656]
[1766083425121,0.561,2849.9,2849.4,2.82936656]
[1766083425425,0.561,2849.8,2849.5,4.1131]
[1766083425931,0.001,2850.1,2849.7,3.7739]
[1766083426131,0.001,2850.1,2849.4,7.68918691]
[1766083426132,0.561,2850.4,2849.9,4.1131]
[1766083427727,0.001,2850.1,2849.9,4.1131]
[1766083428023,0.001,2850.1,2849.9,4.87531859]
[1766083428789,0.001,2850.1,2849.6,3.50919656]
[1766083429019,0.001,2850.1,2849.7,0.03509141]
[1766083429318,0.066,2851.2,2850.0,3.7739]
[1766083429497,0.066,2850.8,2849.7,3.7739]
[1766083429700,0.405504,2851.0,2849.9,3.7739]
[1766083430020,0.561,2850.7,2850.2,4.1131]
[1766083432535,0.561,2850.8,2850.3,4.1131]
[1766083433525,0.66105758,2851.2,2850.5,4.1131]
[1766083433832,0.001,2851.3,2850.6,3.7739]
[1766083433993,0.001,2851.3,2850.6,4.53602443]
[1766083434196,0.001,2851.3,2850.7,3.7739]
[1766083435500,0.562,2851.3,2850.7,3.7739]
[1766083436336,0.001,2851.3,2850.9,3.7739]
[1766083436508,0.001,2851.3,2850.9,4.1131]
[1766083437301,0.07357578,2851.8,2851.2,3.7739]
[1766083437524,0.001,2851.9,2851.2,4.1131]
[1766083437707,0.001,2852.4,2851.7,0.3392]
[1766083437899,0.001,2852.4,2851.8,4.1131]
[1766083438301,0.001,2852.4,2852.0,3.7739]
[1766083440248,0.561,2852.7,2852.0,3.7739]
[1766083440457,0.561,2852.7,2851.9,0.3392]
[1766083440832,0.561,2852.7,2851.9,3.8456]
[1766083441156,0.561,2852.7,2851.9,3.5064]
[1766083441445,0.561,2852.7,2851.3,3.5064]
[1766083441446,0.07357578,2852.4,2851.3,3.5064]
[1766083441648,0.07357578,2852.4,2851.5,3.8771]
[1766083441958,0.07357578,2852.4,2851.6,0.3707]
[1766083442119,0.07357578,2852.4,2851.7,3.5064]
[1766083442313,3.9533121,2852.4,2851.7,3.5064]
[1766083442633,3.9533121,2852.4,2851.3,3.50714042]
[1766083442634,0.3739,2852.3,2851.4,3.5064]
[1766083442951,0.76933077,2852.2,2851.4,3.5064]
[1766083443322,1.33033077,2852.2,2851.4,7.01344036]
[1766083443517,0.9349,2852.2,2851.4,3.5064]
[1766083444324,0.3739,2852.1,2851.4,3.5064]
[1766083444727,0.3739,2852.1,2851.1,0.46438023]
[1766083445525,0.3739,2851.8,2851.0,3.5064]
[1766083445723,0.561,2851.7,2851.1,0.46438023]
[1766083446041,0.561,2851.7,2851.1,3.97179401]
[1766083446242,0.561,2851.7,2851.1,7.47819401]
[1766083446445,0.561,2851.7,2851.1,3.97078023]
[1766083447654,0.561,2851.7,2851.1,7.47816841]
[1766083447860,0.561,2851.7,2851.1,3.97078023]
[1766083448257,0.3739,2851.6,2850.7,3.8771]
[1766083448441,0.3739,2851.6,2850.9,7.01399169]
[1766083449161,0.561,2851.9,2851.1,0.3707]
[1766083449366,0.561,2851.9,2851.2,3.8771]
[1766083449532,0.3739,2852.1,2851.2,3.8771]
[1766083449734,0.561,2852.0,2851.4,3.8771]
[1766083449965,0.561,2852.0,2851.4,3.5064]
[1766083450169,0.9349,2852.0,2851.4,3.5064]
[1766083450470,0.44411297,2851.9,2851.2,7.01369198]
[1766083450631,0.9349,2852.0,2851.2,7.01369198]
[1766083450836,0.9349,2852.0,2851.2,3.5064]
[1766083451272,0.3739,2851.9,2851.2,3.8771]
[1766083451442,0.3739,2851.9,2851.2,3.5064]
[1766083452336,0.3739,2851.9,2851.0,4.44117659]
[1766083452532,0.3739,2851.9,2851.1,3.5089]
[1766083454177,0.342,2851.9,2851.1,3.5089]
[1766083454754,0.44093407,2851.8,2851.1,3.5089]
[1766083455746,0.342,2851.7,2851.0,0.9021]
[1766083456070,0.342,2851.7,2851.0,0.563]
[1766083456979,3.50668512,2851.7,2851.0,0.563]
[1766083457146,0.342,2851.6,2850.6,0.56]
[1766083457353,0.342,2851.4,2850.4,0.80348023]
[1766083457649,0.342,2851.4,2850.4,4.31238023]
[1766083458183,0.56,2851.5,2850.4,3.848]
[1766083458184,0.342,2851.2,2850.4,3.848]
[1766083458677,0.46438023,2851.4,2850.7,3.5089]
[1766083458867,0.487336,2851.3,2850.7,3.5089]
[1766083459480,0.829336,2851.3,2850.6,0.3391]
[1766083459780,0.342,2851.2,2850.5,3.5089]
[1766083460160,0.35066851,2851.6,2850.6,0.3391]
[1766083460356,0.56,2851.5,2850.9,3.848]
[1766083461962,6.812,2851.7,2850.9,3.848]
[1766083462164,0.56,2851.6,2850.9,3.848]
[1766083462377,6.47,2851.7,2850.9,3.5089]
[1766083462582,6.47,2851.7,2850.6,0.56]
[1766083462583,6.47,2851.7,2851.1,3.848]
[1766083462890,1.06101976,2851.6,2851.1,3.848]
[1766083463390,0.342,2851.5,2850.6,0.56]
[1766083463590,0.342,2851.3,2850.4,0.002]
[1766083464157,0.342,2851.1,2850.4,0.002]
[1766083464359,0.342,2850.7,2849.9,0.002]
[1766083464572,0.342,2850.5,2849.9,0.002]
[1766083464801,0.342,2850.5,2849.6,3.5089]
[1766083464802,23.554,2850.4,2849.3,3.5089]
[1766083464959,0.342,2850.3,2849.3,3.5089]
[1766083465164,0.56,2850.6,2849.6,3.5089]
[1766083465375,0.342,2850.5,2849.6,3.5089]
[1766083466470,0.342,2850.5,2849.6,3.848]
[1766083466471,0.44101423,2850.4,2849.6,3.848]
[1766083466671,0.342,2850.5,2849.6,3.848]
[1766083466892,0.902,2850.6,2849.7,3.848]
[1766083467095,4.4100657,2850.6,2849.7,3.848]
[1766083467301,0.342,2850.5,2849.4,3.848]
[1766083467498,0.342,2850.5,2849.4,3.5089]
[1766083467770,0.342,2850.3,2849.4,3.5089]
[1766083467968,0.342,2850.3,2849.3,0.002]
[1766083468369,0.342,2850.1,2849.3,0.002]
[1766083468569,0.342,2849.9,2849.3,0.002]
[1766083468790,0.342,2849.9,2849.2,0.002]
[1766083469576,0.342,2849.9,2848.9,0.002]
[1766083469577,0.41557578,2849.9,2848.9,0.002]
[1766083469803,0.342,2849.7,2848.9,0.002]
[1766083470393,0.342,2849.5,2848.9,0.002]
[1766083470593,0.73605289,2849.4,2848.9,0.002]
[1766083471097,0.342,2849.3,2848.4,3.5089]
[1766083471532,10.705,2849.2,2848.1,3.5109]
[1766083471681,0.342,2849.1,2848.1,3.5109]
[1766083471881,0.07357578,2849.3,2848.3,0.3391]
[1766083472117,0.07357578,2849.3,2848.1,0.40959]
[1766083472118,0.07357578,2849.3,2848.4,3.848]
[1766083472290,0.41557578,2849.3,2848.4,3.848]
[1766083472489,0.342,2849.1,2848.4,3.5089]
[1766083473919,0.342,2849.1,2848.1,0.002]
[1766083474217,0.342,2849.1,2848.1,3.5109]
[1766083474418,0.342,2848.9,2848.1,3.5109]
[1766083474810,1.02538023,2849.2,2848.1,3.51311261]
[1766083474995,0.561,2849.2,2848.5,3.5089]
[1766083475196,4.41275752,2849.2,2848.5,3.5089]
[1766083475397,0.342,2849.1,2848.2,3.5089]
[1766083475627,0.342,2848.9,2848.1,0.002]
[1766083476513,0.342,2848.8,2848.1,0.002]
[1766083477434,0.903,2848.8,2848.1,0.002]
[1766083478106,0.561,2848.8,2848.1,3.5109]
[1766083479333,0.903,2848.8,2848.1,3.5109]
[1766083480311,0.903,2848.8,2848.1,3.85]
[1766083480739,1.34431417,2848.8,2848.1,3.85]
[1766083481454,0.903,2849.2,2848.3,0.3391]
[1766083481608,4.41277349,2849.2,2848.4,3.5089]
[1766083481805,7.92254698,2849.2,2848.4,3.5089]
[1766083482007,0.342,2849.1,2848.1,0.002]
[1766083482811,0.3452,2849.0,2848.1,0.002]
[1766083483010,0.07357578,2849.1,2848.1,0.002]
[1766083483011,0.001,2848.9,2848.1,0.002]
[1766083483228,0.3452,2848.7,2848.1,0.002]
[1766083483447,0.3452,2848.6,2848.1,0.002]
[1766083483623,0.3452,2848.6,2848.0,0.002]
[1766083484229,0.001,2848.9,2848.2,3.3086]
[1766083484467,0.001,2848.9,2848.0,3.51323595]
[1766083484468,0.001,2848.9,2848.4,3.6692]
[1766083486451,0.001,2848.9,2848.4,3.3086]
[1766083487155,0.001,2848.9,2848.5,3.6692]
[1766083487355,0.001,2848.9,2848.2,3.6692]
[1766083487564,0.3462,2848.9,2848.2,3.6692]
[1766083487753,0.3462,2848.9,2848.2,4.09242]
[1766083488073,0.001,2848.9,2848.2,4.09242]
[1766083488454,0.3462,2848.9,2848.2,3.73182]
[1766083488663,0.3462,2848.9,2848.2,3.3086]
[1766083488845,0.3462,2848.9,2848.1,0.561]
[1766083489270,0.3452,2848.7,2848.0,0.002]
[1766083489975,0.3452,2848.5,2847.5,0.46438023]
[1766083490147,0.3452,2848.5,2847.5,4.33682031]
[1766083490353,0.38556964,2848.4,2847.7,3.3086]
[1766083490677,0.3452,2848.3,2847.4,3.3086]
[1766083490845,0.3452,2848.3,2847.5,0.46438023]
[1766083491308,0.3452,2848.3,2847.6,0.46438023]
[1766083491597,0.3452,2848.3,2847.6,3.3086]
[1766083491793,0.3452,2848.3,2848.0,0.002]
[1766083492594,0.3452,2848.1,2847.3,3.8696]
[1766083492899,0.3452,2848.1,2847.2,0.002]
[1766083493079,0.3452,2847.9,2847.2,0.002]
[1766083494269,0.3452,2847.9,2847.2,3.3106]
[1766083494691,0.44174592,2847.8,2847.2,3.3106]
[1766083495197,0.44174592,2847.8,2847.2,0.002]
[1766083495398,0.9062,2848.0,2847.0,7.1816653]
[1766083495603,0.9062,2848.0,2847.1,3.3086]
[1766083495765,0.561,2848.0,2847.3,3.6692]
[1766083496507,0.405504,2847.8,2846.9,0.002]
[1766083496664,0.405504,2847.8,2846.3,3.51327078]
[1766083496665,0.41877578,2847.4,2846.2,3.6692]
[1766083496969,0.3452,2847.2,2846.4,3.3086]
[1766083497156,0.3452,2847.2,2846.1,3.51552555]
[1766083497157,0.561,2847.2,2846.6,3.3086]
[1766083497665,0.561,2847.2,2846.3,0.3606]
[1766083497865,0.3452,2847.1,2846.3,3.6692]
[1766083498111,3.51246926,2847.0,2846.3,3.3086]
[1766083498404,0.3452,2846.9,2846.1,3.3106]
[1766083498565,0.9062,2846.8,2846.1,3.3106]
[1766083498827,0.561,2846.9,2846.3,3.3086]
[1766083499029,0.561,2846.9,2846.2,0.3606]
[1766083499030,0.9062,2846.9,2846.2,0.3606]
[1766083499367,0.9062,2846.9,2846.1,0.002]
[1766083499368,0.3452,2846.8,2846.1,0.002]
[1766083499924,0.3452,2846.8,2846.1,3.3106]
[1766083500268,0.3452,2846.8,2846.0,0.002]
[1766083500269,0.3452,2846.7,2846.0,0.002]
[1766083500426,0.9062,2846.7,2846.0,0.002]
[1766083500625,0.9062,2846.7,2846.0,3.3106]
[1766083500825,0.561,2846.7,2846.0,3.3106]
[1766083501057,0.3535,2846.8,2846.0,3.6516]
[1766083501272,0.3535,2846.6,2846.0,0.002]
[1766083501441,0.3535,2846.6,2845.8,0.002]
[1766083501640,0.3535,2846.6,2845.6,0.46438023]
[1766083501949,0.561,2846.5,2845.8,0.341]
[1766083502149,0.07357578,2846.8,2846.1,3.2409]
[1766083502341,0.3535,2846.7,2845.9,0.341]
[1766083502565,0.3535,2846.7,2845.9,3.5819]
[1766083502833,0.3535,2846.7,2845.5,0.46438023]
[1766083503040,0.3535,2846.3,2845.5,0.46438023]
[1766083503243,0.3535,2846.1,2845.3,0.80538023]
[1766083503976,0.3535,2846.5,2845.2,3.2409]
[1766083504124,3.51296283,2846.6,2845.8,3.5819]
[1766083504325,0.9145,2846.5,2845.8,3.2409]
[1766083504526,0.3535,2846.4,2845.6,3.2409]
[1766083505089,0.3535,2846.4,2845.5,0.341]
[1766083505358,0.3535,2846.7,2845.8,3.2409]
[1766083505524,0.561,2846.4,2845.9,3.5819]
[1766083505727,0.561,2846.5,2845.9,3.5839]
[1766083505928,0.3535,2847.1,2846.0,3.5819]
[1766083506256,13.51224511,2847.2,2846.2,3.2409]
[1766083506257,5.92453131,2847.0,2846.2,3.2409]
[1766083506559,0.3535,2846.8,2846.2,3.2409]
[1766083506739,0.3535,2846.8,2845.9,3.2429]
[1766083507244,0.3535,2846.8,2845.9,3.5839]
[1766083507831,0.3535,2846.8,2846.1,3.2409]
[1766083508043,0.63004547,2846.8,2846.1,3.5819]
[1766083508541,1.0944257,2846.8,2846.1,3.5819]
[1766083508744,0.63004547,2846.8,2846.1,3.5819]
[1766083508940,0.42707578,2847.2,2846.2,0.341]
[1766083509149,0.42707578,2847.2,2846.5,3.2409]
[1766083509150,0.561,2847.2,2846.5,3.2409]
[1766083509444,0.3535,2847.1,2845.9,0.46638023]
[1766083509656,0.3535,2847.1,2845.9,3.98017747]
[1766083509834,0.3535,2847.1,2846.0,0.55184239]
[1766083510334,3.51246926,2847.0,2846.0,0.55184239]
[1766083510531,0.3535,2846.9,2846.0,3.79274239]
[1766083510735,0.07357578,2847.4,2846.3,3.2409]
[1766083510934,0.3535,2847.1,2846.0,0.55184239]
[1766083511162,0.561,2847.5,2846.6,3.2409]
[1766083511467,0.561,2847.5,2846.3,3.8019]
[1766083511468,0.3535,2847.4,2846.3,3.8019]
[1766083511671,0.3535,2847.4,2846.3,0.902]
[1766083511858,0.3535,2847.4,2846.4,3.5819]
[1766083512031,0.42707578,2847.4,2846.1,4.04628023]
[1766083512238,0.561,2847.3,2846.5,3.5819]
[1766083512578,0.561,2847.3,2846.2,1.36343493]
[1766083512579,0.561,2847.4,2846.7,3.5897]
[1766083512736,0.3558,2847.3,2846.3,3.5897]
[1766083513131,0.3558,2847.3,2846.5,3.5897]
[1766083513331,0.3558,2847.4,2846.6,3.5897]
[1766083513536,0.9168,2847.4,2846.7,3.2223]
[1766083513729,0.561,2847.4,2846.7,3.5897]
[1766083513928,13.58504928,2847.9,2846.9,3.5897]
[1766083513929,0.89375601,2847.9,2846.9,3.5897]
[1766083514132,1.45475601,2847.9,2846.9,3.2223]
[1766083514350,0.3558,2847.7,2846.9,0.32223]
[1766083514569,0.3558,2847.7,2846.7,0.3674]
[1766083514570,0.3558,2847.5,2846.7,3.5897]
[1766083515665,0.3558,2847.5,2846.7,7.10253739]
[1766083515834,0.3558,2847.5,2846.7,3.5897]
[1766083516167,0.3558,2847.5,2846.8,3.2223]
[1766083516665,0.3558,2847.3,2846.5,0.46438023]
[1766083516863,0.3558,2847.3,2846.4,3.2223]
[1766083516864,0.3558,2847.2,2846.4,3.2223]
[1766083517039,0.3558,2847.2,2846.4,4.05408023]
[1766083517378,0.3558,2847.2,2846.5,3.2223]
[1766083518578,0.3558,2847.2,2846.1,3.5134965]
[1766083518579,0.3558,2847.1,2846.1,0.46438023]
[1766083518779,0.74260528,2847.0,2846.2,3.68668023]
[1766083519282,1.30360528,2847.0,2846.2,3.68668023]
[1766083519464,1.30360528,2847.0,2846.2,4.74252937]
[1766083519661,0.87224163,2847.3,2846.3,3.5897]
[1766083519851,0.561,2847.2,2846.5,3.5897]
[1766083520476,0.561,2847.2,2846.3,0.46438023]
[1766083520656,0.561,2847.2,2846.2,1.52022937]
[1766083520657,0.3558,2847.1,2846.2,1.52022937]
[1766083520857,0.3558,2847.1,2846.3,3.97767058]
[1766083521061,0.561,2847.2,2846.4,0.3674]
[1766083521403,0.9168,2847.2,2846.5,3.2223]
[1766083521589,0.3558,2847.1,2846.4,3.5897]
[1766083522570,0.7987988,2847.1,2846.4,3.2223]
[1766083523174,0.3558,2847.1,2846.3,0.46438023]
[1766083523382,0.3558,2847.1,2846.2,5.10992937]
[1766083523779,0.3558,2847.1,2846.0,0.002]
[1766083523780,0.07357578,2846.9,2846.0,0.002]
[1766083523971,0.07357578,2846.9,2846.0,3.5917]
[1766083524173,0.63457578,2847.1,2846.4,0.3674]
[1766083524487,0.63457578,2847.1,2846.5,3.2223]
[1766083524652,1.09895601,2847.1,2846.5,3.2223]
[1766083524978,0.46122008,2847.0,2846.5,3.5897]
[1766083525146,0.001,2847.2,2846.5,3.2223]
[1766083525578,3.51329089,2847.2,2846.5,3.2223]
[1766083525763,0.001,2847.2,2846.7,3.2223]
[1766083525959,0.001,2847.2,2846.8,0.03512716]
[1766083526279,10.07357578,2847.9,2846.9,3.5897]
[1766083526466,0.63457578,2847.7,2846.6,0.46438023]
[1766083526784,3.51172917,2847.6,2846.6,3.68668023]
[1766083526983,0.07357578,2847.5,2846.7,0.3674]
[1766083527295,0.07357578,2847.5,2846.6,3.5897]
[1766083527450,0.07357578,2847.5,2846.7,3.5897]
[1766083527647,0.07357578,2847.5,2846.9,3.2223]
[1766083528287,0.07357578,2847.5,2846.8,0.71026444]
[1766083528487,0.07357578,2847.5,2846.4,4.61508023]
[1766083528655,0.07357578,2847.5,2846.6,0.46438023]
[1766083528855,3.58544554,2847.5,2846.6,3.5897]
[1766083529159,0.07357578,2847.5,2846.7,3.2223]
[1766083529592,0.46438023,2847.8,2846.9,3.2223]
[1766083529756,0.561,2847.7,2847.0,3.5897]
[1766083529956,0.561,2847.7,2847.0,3.2223]
[1766083530258,1.09895601,2848.1,2847.2,3.5897]
[1766083530457,1.91850707,2848.1,2847.0,3.2223]
[1766083530767,0.001,2847.5,2847.0,3.5897]
[1766083531964,0.001,2847.5,2846.6,3.51291965]
[1766083531965,0.001,2847.5,2846.6,0.3674]
[1766083532161,0.001,2847.5,2846.6,0.46438023]
[1766083532363,0.001,2847.5,2846.6,3.2223]
[1766083532561,0.46538023,2847.5,2846.6,3.2223]
[1766083532868,0.45381446,2847.4,2846.8,3.5897]
[1766083533175,0.45381446,2847.4,2846.5,3.2223]
[1766083533594,0.45381446,2847.4,2846.5,3.5897]
[1766083533966,0.45381446,2847.4,2846.6,0.3674]
[1766083534166,0.001,2847.5,2846.8,3.2223]
[1766083534364,0.001,2847.5,2847.1,3.5897]
[1766083534789,0.001,2847.5,2846.8,3.5897]
[1766083536883,0.001,2847.5,2846.5,4.05408023]
[1766083537081,0.07357578,2847.2,2846.0,3.5917]
[1766083537387,0.07357578,2847.2,2846.4,0.3674]
[1766083537388,0.561,2847.2,2846.4,0.3674]
[1766083537601,0.561,2847.2,2846.1,0.3674]
[1766083537982,0.561,2847.2,2846.1,3.5897]
[1766083538185,0.561,2847.2,2846.1,7.10327787]
[1766083538363,0.561,2847.1,2846.4,3.5897]
[1766083538563,0.561,2847.1,2846.5,0.3674]
[1766083538766,0.561,2847.1,2846.5,3.5897]
[1766083539497,0.4073313,2847.0,2846.5,3.5897]
[1766083540403,0.561,2847.1,2846.5,3.5897]
[1766083540586,3.51222729,2847.2,2846.5,3.5897]
[1766083540776,0.53795601,2847.3,2846.6,0.03512962]
[1766083541097,0.561,2847.2,2846.6,3.5897]
[1766083541296,0.53795601,2847.3,2846.6,3.5897]
[1766083541611,0.001,2847.5,2847.0,3.5897]
[1766083541779,0.001,2847.5,2847.1,0.3674]
[1766083542097,0.561,2848.0,2847.4,3.5897]
[1766083542307,1.12918343,2848.5,2847.5,0.3674]
[1766083542475,0.63557578,2848.3,2847.6,0.3674]
[1766083542673,0.87901618,2848.2,2847.6,0.3674]
[1766083542873,0.41463595,2848.2,2847.2,3.5405]
[1766083543190,0.46438023,2848.1,2847.3,3.5405]
[1766083543386,0.46438023,2848.1,2847.0,4.1015]
[1766083543599,10.53795601,2848.1,2847.0,3.5405]
[1766083543795,1.79746199,2848.0,2847.0,3.5405]
[1766083544099,1.79746199,2848.0,2846.3,0.46438023]
[1766083544100,0.07357578,2847.6,2846.3,0.46438023]
[1766083544401,0.07357578,2847.4,2846.3,3.5405]
[1766083544586,0.07357578,2847.4,2846.4,3.1984]
[1766083544793,0.07357578,2847.4,2846.5,3.5405]
[1766083544969,0.07357578,2847.4,2846.2,3.51341921]
[1766083545174,3.92674889,2847.3,2846.3,0.46438023]
[1766083545391,0.561,2847.2,2846.3,0.46438023]
[1766083545598,0.561,2847.2,2846.3,3.5405]